[Event "Moscow Youth U19 2019"]
[Site "Moscow"]
[Date "2019.11.21"]
[Round "4.4"]
[White "Gurvich, Vitaly"]
[Black "Rysaev, Danial"]
[Result "1-0"]
[ECO "A50"]
[WhiteElo "2265"]
[BlackElo "2029"]
[Annotator "ChessBase"]
[PlyCount "117"]
[EventDate "2019.11.18"]
[EventType "swiss"]
[EventCountry "RUS"]
[SourceTitle "playchess.com"]
[Source "ChessBase"]
[SourceQuality "1"]
[TimeControl "5400+30"]

1. d4 {[%emt 0:04:45]} Nf6 {[%emt 0:00:00]} 2. c4 {[%emt 0:00:20]} b6 {[%emt 0:00:00]} 3. Nf3 {[%emt 0:00:20]} Bb7 {[%emt 0:00:00]} 4. g3 {[%emt 0:00:04]} Bxf3 {[%emt 0:00:00]} 5. exf3 {[%emt 0:00:03]} e6 {[%emt 0:00:03]} 6. Bg2 {[%emt 0:00:04]} Bb4+ {[%emt 0:01:21]} 7. Nd2 {[%emt 0:01:00]} Nc6 {[%emt 0:01:46]} 8. a3 {[%emt 0:00:50]} Be7 {[%emt 0:00:18]} 9. Nb1 {[%emt 0:11:53]} d5 {[%emt 0:01:46]} 10. Qa4 {[%emt 0:01:00]} Qd7 {[%emt 0:00:14]} 11. cxd5 {[%emt 0:00:08]} Nxd5 {[%emt 0:05:09]} 12. Nc3 {[%emt 0:01:17]} Bf6 {[%emt 0:03:21]} 13. Nxd5 {[%emt 0:03:36]} exd5 {[%emt 0:00:08]} 14. Bh3 {[%emt 0:06:07]} Qxh3 {[%emt 0:03:04]} 15. Qxc6+ {[%emt 0:00:02]} Ke7 {[%emt 0:00:01]} 16. Qxc7+ {[%emt 0:01:36]} Qd7 {[%emt 0:00:02]} 17. Qxd7+ {[%emt 0:01:26]} Kxd7 {[%emt 0:00:00]} 18. Be3 {[%emt 0:00:03]} a5 {[%emt 0:03:55]} 19. Kd2 {[%emt 0:02:13]} a4 {[%emt 0:00:11]} 20. Kd3 {[%emt 0:04:52]} Rac8 {[%emt 0:01:37]} 21. Rhb1 {[%emt 0:01:35]} Rc4 {[%emt 0:07:52]} 22. b3 {[%emt 0:06:10]} axb3 {[%emt 0:00:01]} 23. Rxb3 {[%emt 0:00:01]} Kc6 {[%emt 0:00:01]} 24. Rab1 {[%emt 0:00:55]} Rb8 {[%emt 0:00:33]} 25. Rc3 {[%emt 0:03:11]} Rxc3+ {[%emt 0:00:08]} 26. Kxc3 {[%emt 0:00:04]} Ra8 {[%emt 0:00:04]} 27. Kb3 {[%emt 0:00:41]} Kb5 {[%emt 0:02:20]} 28. Ka2+ {[%emt 0:01:28]} Kc6 {[%emt 0:02:38]} 29. Rc1+ {[%emt 0:00:30]} Kd7 {[%emt 0:00:09]} 30. Kb3 {[%emt 0:00:33]} Be7 {[%emt 0:01:18]} 31. a4 {[%emt 0:00:10]} b5 {[%emt 0:00:21]} 32. axb5 {[%emt 0:00:09]} Rb8 {[%emt 0:00:01]} 33. Ra1 {[%emt 0:00:18]} Rxb5+ {[%emt 0:00:07]} 34. Kc2 {[%emt 0:00:00]} Rb7 {[%emt 0:01:33]} 35. Ra6 {[%emt 0:01:35]} h5 {[%emt 0:01:33]} 36. h3 {[%emt 0:05:17]} Rc7+ {[%emt 0:00:22]} 37. Kd3 {[%emt 0:00:15]} Rb7 {[%emt 0:00:01]} 38. Ra5 {[%emt 0:10:13]} Ke6 {[%emt 0:04:30]} 39. g4 {[%emt 0:00:20]} hxg4 {[%emt 0:02:13]} 40. hxg4 {[%emt 0:02:28]} Rd7 {[%emt 0:02:53]} 41. Bf4 {[%emt 0:02:55]} Bh4 {[%emt 0:01:15]} 42. Ra6+ {[%emt 0:00:12]} Ke7 {[%emt 0:00:04]} 43. Be3 {[%emt 0:01:46]} g5 {[%emt 0:03:34]} 44. f4 {[%emt 0:06:29]} gxf4 {[%emt 0:01:00]} 45. Bxf4 {[%emt 0:00:02]} Rb7 {[%emt 0:01:34]} 46. Bd6+ {[%emt 0:01:45]} Kd7 {[%emt 0:00:16]} 47. f4 {[%emt 0:00:25]} Rb3+ {[%emt 0:02:29]} 48. Kc2 {[%emt 0:00:38]} Rg3 {[%emt 0:00:04]} 49. g5 {[%emt 0:00:55]} Rg2+ {[%emt 0:09:28]} 50. Kd3 {[%emt 0:00:20]} Rb2 {[%emt 0:05:06]} 51. Be5 {[%emt 0:00:52]} Rb5 {[%emt 0:00:02]} 52. Rh6 {[%emt 0:00:46]} Be1 {[%emt 0:00:55]} 53. f5 {[%emt 0:00:59]} Bg3 {[%emt 0:09:05]} 54. Rh7 {[%emt 0:02:06]} Bxe5 {[%emt 0:00:34]} 55. dxe5 {[%emt 0:00:03]} Ke8 {[%emt 0:00:26]} 56. Kd4 {[%emt 0:01:38]} Ra5 {[%emt 0:00:11]} 57. f6 {[%emt 0:01:15]} Ra1 {[%emt 0:00:55]} 58. e6 {[%emt 0:00:32]} fxe6 {[%emt 0:03:01]} 59. g6 {[%emt 0:00:06]} 1-0

[Event "Moscow Youth U19 2019"]
[Site "Moscow"]
[Date "2019.11.21"]
[Round "4.5"]
[White "Sekoyan, Vachagan"]
[Black "Gotsiuk, Denis"]
[Result "1/2-1/2"]
[ECO "D06"]
[WhiteElo "2084"]
[BlackElo "1976"]
[Annotator "NA"]
[PlyCount "33"]
[EventDate "2019.11.18"]
[EventType "swiss"]
[EventCountry "RUS"]
[SourceTitle "playchess.com"]
[Source "ChessBase"]
[SourceQuality "1"]
[TimeControl "5400+30"]

1. d4 {[%emt 0:00:00]} d5 {[%emt 0:00:00]} 2. c4 {[%emt 0:00:00]} c5 {[%emt 0:00:00]} 3. cxd5 {[%emt 0:01:39]} Qxd5 {[%emt 0:00:29]} 4. Nf3 {[%emt 0:00:10]} cxd4 {[%emt 0:00:01]} 5. Nc3 {[%emt 0:01:19]} Qa5 {[%emt 0:00:00]} 6. Nxd4 {[%emt 0:01:55]} Nf6 {[%emt 0:00:01]} 7. Bd2 {[%emt 0:06:11]} Qd8 {[%emt 0:00:26]} 8. Nf3 {[%emt 0:04:06]} Nc6 {[%emt 0:04:39]} 9. g3 {[%emt 0:02:27]} e5 {[%emt 0:00:20]} 10. Bg2 {[%emt 0:03:00]} Be7 {[%emt 0:01:06]} 11. O-O {[%emt 0:01:16]} O-O {[%emt 0:02:22]} 12. h3 {[%emt 0:02:53]} h6 {[%emt 0:06:45]} 13. e4 {[%emt 0:04:02]} Be6 {[%emt 0:02:06]} 14. Be3 {[%emt 0:03:20]} Qxd1 {[%emt 0:05:04]} 15. Re1 $2 {[%emt 1:05:12]} (15. Rfxd1 $11 Rfd8 16. Nh4) 15... Qxa1 16. Rxa1 {[%emt 0:00:00]} Rfd8 {[%emt 0:01:17]} 17. Nd1 $19 {[%emt 0:00:00]} 1/2-1/2

[Event "Moscow Youth U19 2019"]
[Site "Moscow"]
[Date "2019.11.21"]
[Round "4.6"]
[White "Zavialov, Nikita A."]
[Black "Beliuga, Mikhail"]
[Result "0-1"]
[ECO "B01"]
[WhiteElo "2066"]
[BlackElo "1816"]
[Annotator "NA"]
[PlyCount "118"]
[EventDate "2019.11.18"]
[EventType "swiss"]
[EventCountry "RUS"]
[SourceTitle "playchess.com"]
[Source "ChessBase"]
[SourceQuality "1"]
[TimeControl "5400+30"]

1. e4 {[%emt 0:12:30]} d5 {[%emt 0:00:00]} 2. exd5 {[%emt 0:00:45]} Nf6 {[%emt 0:00:00]} 3. d4 {[%emt 0:01:35]} Nxd5 {[%emt 0:00:00]} 4. g3 {[%emt 0:04:17]} g6 {[%emt 0:01:29]} 5. Bg2 {[%emt 0:00:41]} Bg7 {[%emt 0:00:22]} 6. Ne2 {[%emt 0:01:31] B01: Scandinavian Defence} Bg4 {[%emt 0:15:01]} (6... O-O 7. O-O c6 8. Re1 Bf5 9. c3 Nd7 10. Nf4 Nxf4 11. Bxf4 e5 12. Be3 Nb6 13. Na3 exd4 14. cxd4 {0-1 (55) McPhillips,J (2191)-Smith,A (2449) Helsingor 2015}) 7. Nbc3 {[%emt 0:16:46]} (7. c4 $14 Nb4 8. d5 (8. Bxb7 N8c6 $15)) 7... Nxc3 $146 {[%emt 0:16:02]} ({Predecessor:} 7... c6 8. Nxd5 cxd5 9. c3 O-O 10. O-O Qd7 11. Bf4 Bh3 12. Qd3 Bxg2 13. Kxg2 Nc6 14. Qb5 b6 15. Nc1 Rac8 16. Nd3 Qf5 17. Nb4 {½-½ (17) Schuepferling,P (1488)-Rahn,M (1562) Schney 2013}) 8. bxc3 {[%emt 0:00:10]} c6 {[%emt 0:07:19]} 9. h3 {[%emt 0:14:00]} Bxe2 {[%emt 0:03:47]} 10. Qxe2 {[%emt 0:00:07]} O-O {[%emt 0:00:08]} 11. Rb1 {[%emt 0:01:12]} Qc8 {[%emt 0:05:49]} 12. O-O {[%emt 0:05:13]} Re8 {[%emt 0:02:09]} 13. Rd1 {[%emt 0:05:25]} Nd7 {[%emt 0:04:37]} 14. c4 {[%emt 0:10:37]} e6 {[%emt 0:05:13]} 15. Be3 {[%emt 0:01:39]} Nb6 {[%emt 0:22:00]} 16. Rb3 {[%emt 0:01:40]} Qc7 {[%emt 0:02:18]} 17. Rdb1 {[%emt 0:01:37]} Rab8 {[%emt 0:01:11]} 18. Qd3 {[%emt 0:09:07]} Nd7 {[%emt 0:04:13]} 19. d5 {[%emt 0:02:39]} exd5 {[%emt 0:05:25]} 20. cxd5 {[%emt 0:01:47]} Ne5 {[%emt 0:02:08]} 21. Qf1 {[%emt 0:04:10]} cxd5 {[%emt 0:00:23]} 22. Bxa7 {[%emt 0:00:58]} Rbd8 {[%emt 0:00:50]} 23. Bb6 {[%emt 0:00:32]} Qxc2 {[%emt 0:00:05]} 24. Bxd8 {[%emt 0:01:02]} Rxd8 {[%emt 0:00:01]} 25. a4 {[%emt 0:01:37]} Nc4 {[%emt 0:01:07]} 26. Qd1 {[%emt 0:00:37]} Qf5 {[%emt 0:00:45]} 27. Rxb7 {[%emt 0:00:23]} d4 {[%emt 0:00:13]} 28. Rb8 {[%emt 0:00:34]} Qd7 {[%emt 0:00:49]} 29. R1b7 {[%emt 0:00:41]} Qd6 {[%emt 0:00:07]} 30. Qf3 {[%emt 0:00:35]} Ne5 {[%emt 0:00:53]} 31. Qb3 {[%emt 0:00:31]} Rxb8 {[%emt 0:00:31]} 32. Rxb8+ {[%emt 0:00:08]} Bf8 {[%emt 0:00:02]} 33. Rb6 {[%emt 0:00:52]} Qc7 {[%emt 0:00:50]} 34. Bf1 {[%emt 0:00:30]} (34. Be4 $18) 34... d3 {[%emt 0:00:41]} 35. Rb5 {[%emt 0:00:31]} d2 {[%emt 0:00:24]} 36. Qd1 {[%emt 0:00:27]} Bh6 {[%emt 0:00:33]} 37. Be2 {[%emt 0:00:31]} Nd7 {[%emt 0:00:28]} 38. a5 {[%emt 0:00:30]} Be3 {[%emt 0:00:33]} 39. Kg2 {[%emt 0:00:31]} Qc6+ {[%emt 0:00:27]} 40. Kg1 {[%emt 0:00:17]} Qc7 {[%emt 0:00:14]} 41. Kg2 {[%emt 0:00:41]} Qc6+ {[%emt 0:00:02]} 42. Kg1 {[%emt 0:00:27]} Qc7 {[%emt 0:00:01]} 43. Kf1 {[%emt 0:00:34]} Bh6 {[%emt 0:01:03]} 44. Rb1 {[%emt 0:00:31]} Qxa5 {[%emt 0:00:11]} 45. Kg2 {[%emt 0:00:26]} Qd5+ {[%emt 0:00:59]} 46. Bf3 {[%emt 0:00:15]} Qd4 {[%emt 0:00:33]} 47. Be2 {[%emt 0:00:49]} Nc5 {[%emt 0:00:22]} 48. Rb8+ {[%emt 0:00:27]} Kg7 {[%emt 0:00:04]} 49. Bf3 {[%emt 0:00:34]} Nd3 {[%emt 0:00:25]} 50. Qf1 {[%emt 0:00:28]} Ne1+ {[%emt 0:00:06]} 51. Kh1 $19 {[%emt 0:00:19]} Nxf3 {[%emt 0:00:13]} 52. Qd1 {[%emt 0:00:05]} Qxf2 {[%emt 0:00:14]} 53. Qa1+ {[%emt 0:00:10]} Nd4 {[%emt 0:00:03]} 54. Rb1 {[%emt 0:00:10]} Be3 {[%emt 0:00:52]} 55. Qa5 {[%emt 0:00:27]} Qf3+ {[%emt 0:00:26]} 56. Kh2 {[%emt 0:00:06]} Qe2+ {[%emt 0:00:05]} 57. Kh1 {[%emt 0:00:04]} d1=Q+ {[%emt 0:00:04]} 58. Rxd1 {[%emt 0:00:07]} Qxd1+ {[%emt 0:00:05]} 59. Kg2 {[%emt 0:00:02]} Qg1# {[%emt 0:04:35]} 0-1

[Event "Moscow Youth U19 2019"]
[Site "Moscow"]
[Date "2019.11.21"]
[Round "4.7"]
[White "Buniatyan, David"]
[Black "Orlov, Aleksandr"]
[Result "0-1"]
[ECO "D02"]
[WhiteElo "1960"]
[BlackElo "1965"]
[Annotator "NA"]
[PlyCount "82"]
[EventDate "2019.11.18"]
[EventType "swiss"]
[EventCountry "RUS"]
[SourceTitle "playchess.com"]
[Source "ChessBase"]
[SourceQuality "1"]
[TimeControl "5400+30"]

1. d4 {[%emt 0:00:00]} d5 {[%emt 0:00:00]} 2. Bf4 {[%emt 0:00:07]} Nf6 {[%emt 0:00:00]} 3. e3 {[%emt 0:00:31]} e6 {[%emt 0:00:00]} 4. Nf3 {[%emt 0:00:25]} Bd6 {[%emt 0:00:03]} 5. Bg3 {[%emt 0:00:29]} c5 {[%emt 0:00:07]} 6. c3 {[%emt 0:00:06]} Qc7 {[%emt 0:00:14]} 7. Nbd2 {[%emt 0:01:00]} O-O {[%emt 0:00:10]} 8. Bd3 {[%emt 0:00:35]} Nbd7 {[%emt 0:01:41]} 9. Qc2 {[%emt 0:17:31] D02: 1 d4 d5 2 Nf3 sidelines, including 2...Nf6 3 g3 and 2...Nf6 3 Bf4} e5 {[%emt 0:03:14]} 10. dxe5 {[%emt 0:00:54]} Nxe5 {[%emt 0:00:33]} 11. Nxe5 {[%emt 0:00:17]} Bxe5 {[%emt 0:00:09]} 12. Bh4 $146 {[%emt 0:12:07]} ({Predecessor:} 12. Nf3 Bxg3 13. hxg3 h6 14. c4 Be6 15. O-O Rfd8 16. Rac1 Rac8 17. cxd5 Nxd5 {½-½ (36) Vachier Lagrave,M (2779)-Dominguez Perez,L (2739) chess.com INT 2018}) 12... h6 {[%emt 0:13:10]} 13. Nf3 {[%emt 0:04:17]} Be6 {[%emt 0:09:15]} 14. O-O {[%emt 0:10:21]} Nd7 {[%emt 0:11:54]} 15. Nxe5 {[%emt 0:03:07]} Qxe5 {[%emt 0:00:30]} 16. f4 {[%emt 0:09:44]} Qh5 {[%emt 0:01:38]} 17. Bg3 {[%emt 0:03:47]} f5 {[%emt 0:00:22]} 18. c4 {[%emt 0:01:36]} dxc4 {[%emt 0:04:26]} 19. Bxc4 {[%emt 0:00:20]} Qf7 {[%emt 0:00:41]} 20. Bb5 {[%emt 0:03:57]} Rac8 {[%emt 0:01:33]} 21. e4 {[%emt 0:03:52]} fxe4 {[%emt 0:03:53]} 22. Qxe4 {[%emt 0:07:50]} Nf6 {[%emt 0:00:18]} 23. Qc2 {[%emt 0:00:33]} c4 {[%emt 0:00:35]} 24. Qe2 {[%emt 0:03:04]} a6 {[%emt 0:02:51]} 25. Ba4 {[%emt 0:00:16]} Bf5 {[%emt 0:03:37]} 26. Bc2 {[%emt 0:02:44]} Rfe8 {[%emt 0:01:31]} 27. Qd1 {[%emt 0:00:48]} Rcd8 {[%emt 0:01:11]} 28. Qb1 {[%emt 0:00:13]} Bd3 {[%emt 0:01:33]} 29. Rd1 {[%emt 0:00:55]} Qg6 {[%emt 0:01:03]} 30. Bxd3 {[%emt 0:00:32]} cxd3 {[%emt 0:00:07]} 31. a4 {[%emt 0:00:34]} Re2 {[%emt 0:01:07]} 32. Qa2+ {[%emt 0:02:03]} Kh8 {[%emt 0:00:28]} 33. Qc4 {[%emt 0:00:17]} Rxb2 {[%emt 0:04:48]} 34. Ra3 {[%emt 0:03:33]} Ng4 {[%emt 0:06:07]} 35. Re1 {[%emt 0:02:20]} Qb6+ {[%emt 0:04:17]} 36. Kh1 {[%emt 0:00:31]} d2 {[%emt 0:00:20]} 37. Rd1 {[%emt 0:00:30]} Ne3 {[%emt 0:00:20]} 38. Rxe3 {[%emt 0:00:28]} Qxe3 {[%emt 0:00:05]} 39. f5 {[%emt 0:00:11] [#]} Rb1 $1 {[%emt 0:00:43]} 40. Qf1 {[%emt 0:00:44]} Rxd1 {[%emt 0:00:09]} 41. Qxd1 {[%emt 0:00:02]} Rc8 {[%emt 0:00:10]} 0-1

[Event "Moscow Youth U19 2019"]
[Site "Moscow"]
[Date "2019.11.21"]
[Round "4.8"]
[White "Shlykov, Yaroslav"]
[Black "Miroshnik, Ekaterina"]
[Result "1-0"]
[ECO "E04"]
[WhiteElo "1623"]
[BlackElo "2127"]
[Annotator "ChessBase"]
[PlyCount "189"]
[EventDate "2019.11.18"]
[EventType "swiss"]
[EventCountry "RUS"]
[SourceTitle "playchess.com"]
[Source "ChessBase"]
[SourceQuality "1"]
[TimeControl "5400+30"]

1. d4 {[%emt 0:00:00]} e6 {[%emt 0:00:00]} 2. c4 {[%emt 0:00:00]} Nf6 {[%emt 0:00:00]} 3. Nf3 {[%emt 0:00:00]} d5 {[%emt 0:00:00]} 4. g3 {[%emt 0:00:00]} dxc4 {[%emt 0:00:05]} 5. Bg2 {[%emt 0:00:00]} Bd7 {[%emt 0:00:04]} 6. Ne5 {[%emt 0:00:38]} Bc6 {[%emt 0:00:06]} 7. Nxc6 {[%emt 0:00:49]} Nxc6 {[%emt 0:00:05]} 8. Bxc6+ {[%emt 0:00:59]} bxc6 {[%emt 0:00:05]} 9. Nc3 {[%emt 0:00:09]} Bb4 {[%emt 0:04:06]} 10. O-O {[%emt 0:01:59]} O-O {[%emt 0:00:17]} 11. Bg5 {[%emt 0:00:51]} Rb8 {[%emt 0:22:23]} 12. e4 {[%emt 0:06:01]} Be7 {[%emt 0:00:13]} 13. Qd2 {[%emt 0:06:43]} Qd7 {[%emt 0:13:37]} 14. Rad1 {[%emt 1:18:51]} Rfd8 {[%emt 0:01:25]} 15. Qe2 {[%emt 0:01:00]} h6 {[%emt 0:09:43]} 16. Bc1 {[%emt 0:00:43]} Bf8 {[%emt 0:11:06]} 17. a3 {[%emt 0:00:47]} c5 {[%emt 0:02:17]} 18. d5 {[%emt 0:03:36]} e5 {[%emt 0:04:35]} 19. f4 {[%emt 0:07:10]} exf4 {[%emt 0:00:00]} 20. gxf4 {[%emt 0:01:50]} Rb6 {[%emt 0:00:00]} 21. e5 {[%emt 0:03:16]} Re8 {[%emt 0:00:00]} 22. f5 {[%emt 0:03:58]} Bd6 {[%emt 0:00:00]} 23. e6 {[%emt 0:00:17]} fxe6 {[%emt 0:00:00]} 24. fxe6 {[%emt 0:58:34]} Qe7 {[%emt 0:00:00]} 25. Qg2 {[%emt 0:01:37]} Kh8 {[%emt 0:00:00]} 26. Ne4 {[%emt 0:01:26]} Be5 {[%emt 0:00:00]} 27. Ng3 {[%emt 0:26:34]} Bxg3 {[%emt 0:00:34]} 28. Qxg3 {[%emt 0:00:46]} Rb3 {[%emt 0:00:38]} 29. Qe5 {[%emt 0:05:03]} Rh3 {[%emt 0:01:04]} 30. Bf4 {[%emt 0:08:22]} Rh5 {[%emt 0:01:29]} 31. Qe2 {[%emt 0:02:15]} Rxd5 {[%emt 0:00:22]} 32. Rde1 {[%emt 0:00:46]} Rf5 {[%emt 0:01:36]} 33. Qxc4 {[%emt 0:00:40]} Nd5 {[%emt 0:00:51]} 34. Bg3 {[%emt 0:01:06]} Rxf1+ {[%emt 0:00:22]} 35. Qxf1 {[%emt 0:00:34]} Qf6 {[%emt 0:00:48]} 36. Qg2 {[%emt 0:00:47]} c6 {[%emt 0:00:34]} 37. Be5 {[%emt 0:01:15]} Qg5 {[%emt 0:00:26]} 38. Qxg5 {[%emt 0:13:24]} hxg5 {[%emt 0:00:02]} 39. Bd6 {[%emt 0:13:45]} c4 {[%emt 0:00:28]} 40. Re4 {[%emt 0:00:43]} c3 {[%emt 0:00:00]} 41. bxc3 {[%emt 0:00:42]} Nxc3 {[%emt 0:00:00]} 42. Re5 {[%emt 0:00:24]} Nb5 {[%emt 0:00:00]} 43. Bc5 {[%emt 0:00:26]} Kg8 {[%emt 0:01:05]} 44. e7 {[%emt 0:00:27]} Kf7 {[%emt 0:00:42]} 45. Rxg5 {[%emt 0:00:15]} a5 {[%emt 0:00:32]} 46. Rg3 {[%emt 0:02:10]} a4 {[%emt 0:00:30]} 47. Rg4 {[%emt 0:00:22]} Nc3 {[%emt 0:00:32]} 48. Rc4 {[%emt 0:01:00]} Nd5 {[%emt 0:00:15]} 49. Rxa4 {[%emt 0:00:11]} Ke6 {[%emt 0:00:40]} 50. Re4+ {[%emt 0:00:52]} Kf5 {[%emt 0:00:32]} 51. Re1 {[%emt 0:00:26]} Nf6 {[%emt 0:00:19]} 52. Rd1 {[%emt 0:00:29]} Nd5 {[%emt 0:01:23]} 53. a4 {[%emt 0:00:20]} Ke6 {[%emt 0:00:39]} 54. Re1+ {[%emt 0:00:47]} Kd7 {[%emt 0:00:12]} 55. Kf2 {[%emt 0:00:14]} Nf6 {[%emt 0:00:30]} 56. Rd1+ {[%emt 0:02:14]} Ke6 {[%emt 0:00:37]} 57. Kf3 {[%emt 0:10:30]} Ra8 {[%emt 0:00:41]} 58. Rd8 {[%emt 0:00:23]} Rxa4 {[%emt 0:00:08]} 59. e8=Q+ {[%emt 0:00:41]} Nxe8 {[%emt 0:00:03]} 60. Rxe8+ {[%emt 0:00:05]} Kf5 {[%emt 0:00:12]} 61. Rc8 {[%emt 0:01:03]} Ra6 {[%emt 0:00:57]} 62. Bd4 {[%emt 0:00:28]} Ra3+ {[%emt 0:01:03]} 63. Be3 {[%emt 0:00:40]} Rc3 {[%emt 0:00:28]} 64. Rc7 {[%emt 0:00:33]} g6 {[%emt 0:00:20]} 65. Ke2 {[%emt 0:00:25]} Rc2+ {[%emt 0:00:16]} 66. Bd2 {[%emt 0:00:03]} Kg4 {[%emt 0:00:26]} 67. Kd3 {[%emt 0:01:01]} Rc5 {[%emt 0:00:01]} 68. Rg7 {[%emt 0:00:40]} Rd5+ {[%emt 0:00:40]} 69. Ke2 {[%emt 0:00:36]} g5 {[%emt 0:01:00]} 70. Rg6 {[%emt 0:00:16]} c5 {[%emt 0:00:14]} 71. Be3 {[%emt 0:00:23]} Rf5 {[%emt 0:00:59]} 72. Rc6 {[%emt 0:00:47]} Kh3 {[%emt 0:00:13]} 73. Rh6+ {[%emt 0:00:05]} Kg4 {[%emt 0:01:00]} 74. h3+ {[%emt 0:00:15]} Kg3 {[%emt 0:00:05]} 75. Rh5 {[%emt 0:09:12]} Rf7 {[%emt 0:00:56]} 76. Bxg5 {[%emt 0:00:10]} c4 {[%emt 0:00:29]} 77. h4 {[%emt 0:00:12]} Kg4 {[%emt 0:00:09]} 78. Rh6 {[%emt 0:00:05]} Rc7 {[%emt 0:00:08]} 79. Kd2 {[%emt 0:00:05]} Rc8 {[%emt 0:00:49]} 80. Kc3 {[%emt 0:00:07]} Rc7 {[%emt 0:00:06]} 81. Rd6 {[%emt 0:00:05]} Kh5 {[%emt 0:00:19]} 82. Rd4 {[%emt 0:00:06]} Rc6 {[%emt 0:00:27]} 83. Rxc4 {[%emt 0:00:04]} Re6 {[%emt 0:00:07]} 84. Kd4 {[%emt 0:00:09]} Ra6 {[%emt 0:00:14]} 85. Ke5 {[%emt 0:00:06]} Ra5+ {[%emt 0:00:08]} 86. Kf4 {[%emt 0:00:07]} Ra1 {[%emt 0:00:41]} 87. Kf5 {[%emt 0:00:26]} Rf1+ {[%emt 0:00:09]} 88. Rf4 {[%emt 0:00:08]} Rg1 {[%emt 0:00:25]} 89. Bf6 {[%emt 0:14:17]} Rb1 {[%emt 0:00:53]} 90. Re4 {[%emt 0:00:31]} Rb5+ {[%emt 0:02:18]} 91. Re5 {[%emt 0:00:09]} Rb1 {[%emt 0:00:08]} 92. Ke6+ {[%emt 0:00:08]} Kh6 {[%emt 0:00:12]} 93. Kf7 {[%emt 0:00:30]} Rb7+ {[%emt 0:01:10]} 94. Be7 {[%emt 0:00:11]} Rb1 {[%emt 0:00:24]} 95. Bf8+ {[%emt 0:00:09]} 1-0

[Event "Moscow Youth U19 2019"]
[Site "Moscow"]
[Date "2019.11.21"]
[Round "4.9"]
[White "Kozhukhov, Alexandr"]
[Black "Nikolaev, Daniil"]
[Result "1-0"]
[ECO "E16"]
[WhiteElo "1627"]
[BlackElo "1867"]
[Annotator "NA"]
[PlyCount "71"]
[EventDate "2019.11.18"]
[EventType "swiss"]
[EventCountry "RUS"]
[SourceTitle "playchess.com"]
[Source "ChessBase"]
[SourceQuality "1"]
[TimeControl "5400+30"]

1. d4 {[%emt 0:03:03]} Nf6 {[%emt 0:00:00]} 2. Nf3 {[%emt 0:00:12]} e6 {[%emt 0:00:05]} 3. c4 {[%emt 0:00:34]} b6 {[%emt 0:00:08]} 4. g3 {[%emt 0:00:22]} Bb7 {[%emt 0:00:19]} 5. Bg2 {[%emt 0:00:12]} Bb4+ {[%emt 0:00:07]} 6. Bd2 {[%emt 0:00:10]} Bxd2+ {[%emt 0:00:32]} 7. Qxd2 {[%emt 0:00:42]} O-O {[%emt 0:01:34]} 8. Nc3 {[%emt 0:00:38]} d6 {[%emt 0:10:42]} 9. O-O {[%emt 0:04:07]} c5 {[%emt 0:05:49] E16: Queen's Indian: 4 g3 Bb7 5 Bg2 Bb4+} (9... Ne4 10. Nxe4 Bxe4 11. Nh4 {½-½ (11) Ortiz Suarez,I (2551)-Bruzon Batista,L (2643) Greensboro 2019}) 10. d5 {[%emt 0:00:17]} e5 {[%emt 0:01:20]} 11. e4 {[%emt 0:02:20]} Na6 $146 {[%emt 0:08:23]} ({Predecessor:} 11... a6 12. a4 Nbd7 13. Ne1 Ne8 14. Nd3 Nc7 15. f4 Qe7 16. Bh3 f6 {0-1 (62) Morchiashvili,B (2322)-Hayrapetyan,H (2476) Poti 2016}) 12. Ne1 {[%emt 0:03:43]} Nc7 {[%emt 0:02:27]} 13. a4 {[%emt 0:04:57]} a6 {[%emt 0:03:34]} 14. Nd3 {[%emt 0:03:57]} Qe8 {[%emt 0:25:16]} 15. f4 {[%emt 0:03:06]} Ng4 $2 {[%emt 0:01:16]} (15... Nd7 $16 16. b3 f6) 16. h3 {[%emt 0:01:44]} Nh6 {[%emt 0:01:09]} 17. fxe5 {[%emt 0:03:15]} dxe5 {[%emt 0:00:04]} 18. a5 {[%emt 0:00:09]} Qe7 {[%emt 0:06:54]} 19. axb6 {[%emt 0:00:13]} Ne8 {[%emt 0:00:04]} 20. Na4 {[%emt 0:00:18]} Nd6 {[%emt 0:04:35]} 21. Rac1 {[%emt 0:01:16]} f5 {[%emt 0:26:12]} 22. Naxc5 {[%emt 0:01:25]} fxe4 {[%emt 0:02:03]} 23. Nxe4 {[%emt 0:01:07]} Nhf5 {[%emt 0:00:34]} 24. Nxd6 {[%emt 0:01:10]} Qxd6 {[%emt 0:00:07]} 25. c5 {[%emt 0:00:33]} Qg6 {[%emt 0:05:50]} 26. g4 {[%emt 0:02:18]} Nh4 {[%emt 0:05:27]} 27. Nxe5 {[%emt 0:02:58]} Qe8 {[%emt 0:00:06]} 28. Rce1 {[%emt 0:00:36]} Nxg2 {[%emt 0:00:25]} 29. Qxg2 {[%emt 0:10:13]} Rxf1+ {[%emt 0:00:11]} 30. Qxf1 {[%emt 0:49:25]} Bxd5 {[%emt 0:00:07]} 31. c6 {[%emt 0:05:38]} Qe7 {[%emt 0:02:27]} 32. Qf2 {[%emt 0:02:22]} Qd6 {[%emt 0:01:17]} 33. b7 {[%emt 0:07:50]} Rf8 {[%emt 0:00:15]} 34. Qxf8+ {[%emt 0:00:50]} Kxf8 {[%emt 0:00:13]} 35. b8=Q+ {[%emt 0:00:09]} Qxb8 {[%emt 0:00:37]} 36. Nd7+ $18 {[%emt 0:00:06] Double Attack} 1-0